fUST/lending_fUST_20240227
["ID","MTS","AMOUNT","RATE_DAILY","PERIOD"]
[315433833,1709033440050,-500.0,0.00019178,2]
[315433834,1709033440059,-500.0,0.00019178,2]
[315433835,1709033440068,-500.0,0.00019178,2]
[315433836,1709033440078,-500.0,0.00019178,2]
[315433837,1709033440089,-500.0,0.00019178,2]
[315433838,1709033440098,-520.49261535,0.00019178,2]
[315433839,1709033440108,-500.0,0.00019178,2]
[315433840,1709033440117,-500.0,0.00019178,2]
[315433841,1709033440126,-500.0,0.00019178,2]
[315433842,1709033440136,-241.11026349,0.00019178,2]
[315433843,1709033440145,-501.22369935,0.00019178,2]
[315433844,1709033440154,-500.0,0.00019178,2]
[315433845,1709033440163,-500.0,0.00019178,2]
[315433846,1709033440173,-500.0,0.00019178,2]
[315433847,1709033440182,-500.84804991,0.00019178,2]
[315433848,1709033440191,-500.0,0.00019178,2]
[315433849,1709033440199,-506.51167982,0.00019178,2]
[315433850,1709033440209,-500.0,0.00019178,2]
[315433851,1709033440217,-500.65277545,0.00019178,2]
[315433852,1709033440227,-618.23,0.00019178,2]
[315433853,1709033440236,-500.0,0.00019178,2]
[315433854,1709033440245,-500.0,0.00019178,2]
[315433855,1709033440254,-625.25473972,0.00019178,2]
[315433856,1709033440263,-500.0,0.00019178,2]
[315433857,1709033440272,-500.0,0.00019178,2]
[315433858,1709033440281,-500.0,0.00019178,2]
[315433859,1709033440290,-500.0,0.00019178,2]
[315433860,1709033440298,-500.0,0.00019178,2]
[315433861,1709033440307,-500.0,0.00019178,2]
[315433862,1709033440317,-500.63186668,0.00019178,2]
[315433863,1709033440326,-500.0,0.00019178,2]
[315433864,1709033440336,-500.0,0.00019178,2]
[315433865,1709033440346,-500.0,0.00019178,2]
[315433866,1709033440355,-500.11571016,0.00019178,2]
[315433867,1709033440365,-500.0,0.00019178,2]
[315433868,1709033440375,-500.0,0.00019178,2]
[315433869,1709033440384,-500.0,0.00019178,2]
[315433870,1709033440393,-500.0,0.00019178,2]
[315433871,1709033440402,-500.0,0.00019178,2]
[315433872,1709033440411,-1575.81,0.00019178,2]
[315433873,1709033440420,-500.0,0.00019178,2]
[315433874,1709033440431,-500.0,0.00019178,2]
[315433875,1709033440440,-500.0,0.00019178,2]
[315433876,1709033440449,-500.0,0.00019178,2]
[315433877,1709033440458,-500.0,0.00019178,2]
[315433878,1709033440467,-500.0,0.00019178,2]
[315433879,1709033440477,-500.0,0.00019178,2]
[315433880,1709033440487,-310.0,0.00019178,2]
[315433881,1709033440496,-632.27431855,0.00019178,2]
[315433882,1709033440506,-500.0,0.00019178,2]
[315433883,1709033440515,-500.0,0.00019178,2]
[315433884,1709033440524,-1554.85,0.00019178,2]
[315433885,1709033440534,-500.0,0.00019178,2]
[315433886,1709033440543,-500.0,0.00019178,2]
[315433887,1709033440552,-500.0,0.00019178,2]
[315433888,1709033440561,-500.0,0.00019178,2]
[315433889,1709033440571,-500.18571217,0.00019178,2]
[315433890,1709033440580,-500.0,0.00019178,2]
[315433891,1709033440590,-500.0,0.00019178,2]
[315433892,1709033440599,-500.20544472,0.00019178,2]
[315433893,1709033440608,-500.0,0.00019178,2]
[315433894,1709033440616,-500.0,0.00019178,2]
[315433895,1709033440626,-500.0,0.00019178,2]
[315433897,1709033440635,-500.0,0.00019178,2]
[315433898,1709033440643,-500.0,0.00019178,2]
[315433899,1709033440652,-500.0,0.00019178,2]
[315433900,1709033440661,-500.0,0.00019178,2]
[315433901,1709033440670,-712.06,0.00019178,2]
[315433902,1709033440679,-907.1,0.00019178,2]
[315433903,1709033440688,-500.0,0.00019178,2]
[315433904,1709033440698,-500.0,0.00019178,2]
[315433905,1709033440706,-500.0,0.00019178,2]
[315433906,1709033440715,-500.0,0.00019178,2]
[315433907,1709033440724,-500.0,0.00019178,2]
[315433908,1709033440733,-500.0,0.00019178,2]
[315433909,1709033440742,-500.0,0.00019178,2]
[315433910,1709033440752,-500.0,0.00019178,2]
[315433911,1709033440761,-500.0,0.00019178,2]
[315433912,1709033440770,-221.31754441,0.00019178,2]
[315433913,1709033440780,-501.22858911,0.00019178,2]
[315433914,1709033440794,-500.0,0.00019178,2]
[315433915,1709033440807,-250.3473104,0.00019178,2]
[315433916,1709033440820,-500.0,0.00019178,2]
[315433917,1709033440833,-500.0,0.00019178,2]
[315433918,1709033440845,-500.27404044,0.00019178,2]
[315433919,1709033440855,-500.0,0.00019178,2]
[315433920,1709033440867,-500.0,0.00019178,2]
[315433921,1709033440879,-500.0,0.00019178,2]
[315433922,1709033440892,-155.0,0.00019178,2]
[315433923,1709033440904,-500.0,0.00019178,2]
[315433924,1709033440917,-2541.08,0.00019178,2]
[315433925,1709033440928,-500.48331824,0.00019178,2]
[315433926,1709033440940,-500.0,0.00019178,2]
[315433927,1709033440951,-500.0,0.00019178,2]
[315433928,1709033440961,-500.0,0.00019178,2]
[315433929,1709033440973,-500.0,0.00019178,2]
[315433930,1709033440985,-500.0,0.00019178,2]
[315433931,1709033440995,-583.2051723,0.00019178,2]
[315433932,1709033441009,-500.0,0.00019178,2]
[315433933,1709033441020,-1145.82,0.00019178,2]
[315433934,1709033441032,-500.0,0.00019178,2]
[315433935,1709033441044,-500.0,0.00019178,2]
[315433936,1709033441057,-500.0,0.00019178,2]
[315433937,1709033441068,-509.27132953,0.00019178,2]
[315433938,1709033441078,-401.70891154,0.00019178,2]
[315433939,1709033441090,-500.47393803,0.00019178,2]
[315433940,1709033441104,-500.0,0.00019178,2]
[315433941,1709033441115,-500.0,0.00019178,2]
[315433942,1709033441128,-500.0,0.00019178,2]
[315433943,1709033441140,-767.04,0.00019178,2]
[315433944,1709033441151,-500.0,0.00019178,2]
[315433945,1709033441162,-500.0,0.00019178,2]
[315433946,1709033441174,-500.0,0.00019178,2]
[315433947,1709033441186,-500.0,0.00019178,2]
[315433948,1709033441197,-500.67580525,0.00019178,2]
[315433949,1709033441208,-1834.45,0.00019178,2]
[315433950,1709033441221,-500.0,0.00019178,2]
[315433951,1709033441234,-1907.83,0.00019178,2]
[315433953,1709033441246,-500.0,0.00019178,2]
[315433956,1709033441258,-549.59387891,0.00019178,2]
[315433958,1709033441271,-500.0,0.00019178,2]
[315433959,1709033441281,-1301.18,0.00019178,2]
[315433961,1709033441291,-500.0,0.00019178,2]
[315433963,1709033441301,-500.0,0.00019178,2]
[315433964,1709033441311,-500.0,0.00019178,2]
[315433965,1709033441322,-503.20835864,0.00019178,2]
[315433966,1709033441335,-500.0,0.00019178,2]
[315433967,1709033441348,-1911.4,0.00019178,2]
[315433968,1709033441359,-500.0,0.00019178,2]
[315433969,1709033441371,-500.0,0.00019178,2]
[315433970,1709033441381,-500.0,0.00019178,2]
[315433971,1709033441392,-544.99348939,0.00019178,2]
[315433972,1709033441403,-593.2402925,0.00019178,2]
[315433974,1709033441413,-598.39,0.00019178,2]
[315433976,1709033441424,-500.0,0.00019178,2]
[315433977,1709033441434,-500.0,0.00019178,2]
[315433978,1709033441445,-500.0,0.00019178,2]
[315433979,1709033441456,-443.10422866,0.00019178,2]
[315433980,1709033441466,-236.25628183,0.00019178,2]
[315433981,1709033441477,-500.0,0.00019178,2]
[315433982,1709033441488,-500.0,0.00019178,2]
[315433983,1709033441499,-500.0,0.00019178,2]
[315433984,1709033441511,-10079.62,0.00019178,2]
[315433985,1709033441522,-500.0,0.00019178,2]
[315433986,1709033441532,-500.0,0.00019178,2]
[315433987,1709033441543,-500.0,0.00019178,2]
[315433988,1709033441554,-1988.49,0.00019178,2]
[315433989,1709033441565,-500.0,0.00019178,2]
[315433990,1709033441576,-500.0,0.00019178,2]
[315433991,1709033441587,-500.0,0.00019178,2]
[315433992,1709033441598,-500.0,0.00019178,2]
[315433993,1709033441608,-164.67083156,0.00019178,2]
[315433994,1709033441618,-4134.42,0.00019178,2]
[315433995,1709033441629,-500.0,0.00019178,2]
[315433996,1709033441639,-500.0,0.00019178,2]
[315433997,1709033441651,-500.0,0.00019178,2]
[315433998,1709033441661,-500.0,0.00019178,2]
[315433999,1709033441672,-19597.57,0.00019178,2]
[315434000,1709033441683,-500.0,0.00019178,2]
[315434001,1709033441694,-500.0,0.00019178,2]
[315434002,1709033441704,-500.0,0.00019178,2]
[315434003,1709033441714,-500.0,0.00019178,2]
[315434004,1709033441725,-500.0,0.00019178,2]
[315434005,1709033441736,-500.0,0.00019178,2]
[315434006,1709033441748,-884.44,0.00019178,2]
[315434007,1709033441760,-884.44,0.00019178,2]
[315434008,1709033441771,-500.0,0.00019178,2]
[315434009,1709033441782,-884.44,0.00019178,2]
[315434010,1709033441794,-500.0,0.00019178,2]
[315434011,1709033441805,-500.0,0.00019178,2]
[315434012,1709033441816,-480.04806816,0.00019178,2]
[315434013,1709033441827,-500.0,0.00019178,2]
[315434014,1709033441839,-500.0,0.00019178,2]
[315434015,1709033441850,-500.0,0.00019178,2]
[315434016,1709033441861,-500.0,0.00019178,2]
[315434017,1709033441872,-500.0,0.00019178,2]
[315434018,1709033441883,-500.0,0.00019178,2]
[315434019,1709033441895,-500.0,0.00019178,2]
[315434020,1709033441906,-5018.35,0.00019178,2]
[315434021,1709033441917,-500.0,0.00019178,2]
[315434022,1709033441928,-1690.48,0.00019178,2]
[315434023,1709033441939,-500.0,0.00019178,2]
[315434024,1709033441951,-500.0,0.00019178,2]
[315434025,1709033441962,-500.0,0.00019178,2]
[315434026,1709033441974,-500.0,0.00019178,2]
[315434027,1709033441987,-500.0,0.00019178,2]
[315434028,1709033442127,-500.0,0.00019178,2]
[315434029,1709033442137,-3319.47,0.00019178,2]
[315434030,1709033442147,-501.378692,0.00019178,2]
[315434031,1709033442156,-500.0,0.00019178,2]
[315434032,1709033442165,-500.0,0.00019178,2]
[315434033,1709033442175,-1469.61,0.00019178,2]
[315434034,1709033442184,-500.0,0.00019178,2]
[315434035,1709033442193,-614.09,0.00019178,2]
[315434036,1709033442202,-182.29292872,0.00019178,2]
[315434037,1709033442212,-500.0,0.00019178,2]
[315434038,1709033442220,-1304.09,0.00019178,2]
[315434039,1709033442230,-500.0,0.00019178,2]
[315434040,1709033442239,-1460.96,0.00019178,2]
[315434041,1709033442248,-500.0,0.00019178,2]
[315434042,1709033442257,-2456.76,0.00019178,2]
[315434043,1709033442267,-500.0,0.00019178,2]
[315434044,1709033442276,-209.21007188,0.00019178,2]
[315434045,1709033442286,-500.0,0.00019178,2]
[315434046,1709033442295,-2481.48,0.00019178,2]
[315434047,1709033442304,-500.0,0.00019178,2]
[315434048,1709033442314,-500.0,0.00019178,2]
[315434049,1709033442323,-6748.67,0.00019178,2]
[315434050,1709033442332,-320.15175574,0.00019178,2]
[315434051,1709033442343,-18318.51,0.00019178,2]
[315434052,1709033442353,-3952.58,0.00019178,2]
[315434053,1709033442362,-868.04,0.00019178,2]
[315434054,1709033442371,-4670.66,0.00019178,2]
[315434055,1709033442380,-500.0,0.00019178,2]
[315434056,1709033442389,-500.0,0.00019178,2]
[315434057,1709033442398,-717.52,0.00019178,2]
[315434058,1709033442407,-500.0,0.00019178,2]
[315434059,1709033442416,-501.22080587,0.00019178,2]
[315434060,1709033442425,-3219.33,0.00019178,2]
[315434061,1709033442435,-728.61,0.00019178,2]
[315434062,1709033442443,-500.0,0.00019178,2]
[315434063,1709033442452,-500.0,0.00019178,2]
[315434064,1709033442462,-694.82180753,0.00019178,2]
[315434065,1709033442471,-169.277185,0.00019178,2]
[315434066,1709033442480,-166.666666,0.00019178,2]
[315434067,1709033442489,-430.973088,0.00019178,4]
[315434068,1709033442498,-163.847985,0.00019178,2]
[315434069,1709033442507,-500.0,0.00019232,2]
[315434070,1709033442516,-500.0,0.00019287,2]
[315434071,1709033442525,-153.0,0.000193,2]
[315434072,1709033442535,-500.0,0.00019342,2]
[315434073,1709033442544,-767.2123362,0.00019352,2]
[315434074,1709033442554,-500.0,0.00019396,2]
[315434075,1709033442563,-153.0,0.000194,2]
[315434076,1709033442572,-153.0,0.000194,2]
[315434077,1709033442581,-1519.40144155,0.00019451,2]
[315434078,1709033442591,-500.0,0.00019451,2]
[315434079,1709033442600,-500.0,0.00019451,2]
[315434080,1709033442609,-500.0,0.00019451,2]
[315434081,1709033442618,-500.0,0.00019451,2]
[315434082,1709033442627,-500.0,0.00019451,2]
[315434083,1709033442636,-500.0,0.00019451,2]
[315434084,1709033442645,-884.44,0.00019451,2]
[315434085,1709033442654,-884.44,0.00019451,2]
[315434086,1709033442664,-884.44,0.00019451,2]
[315434087,1709033442673,-486.79569354,0.00019451,2]
[315434088,1709033442682,-500.0,0.00019452,2]
[315434089,1709033442692,-500.0,0.00019452,2]
[315434090,1709033442701,-241.83685928,0.00019452,2]
[315434091,1709033442710,-513.82,0.00019452,2]
[315434092,1709033442719,-500.0,0.00019452,2]
[315434093,1709033442728,-500.0,0.00019452,2]
[315434094,1709033442737,-507.42166358,0.00019452,2]
[315434095,1709033442746,-587.09,0.00019452,2]
[315434096,1709033442756,-522.08,0.00019452,2]
[315434097,1709033442765,-500.0,0.00019452,2]
[315434098,1709033442774,-500.0,0.00019452,2]
[315434099,1709033442784,-500.0,0.00019452,2]
[315434101,1709033442793,-500.0,0.00019452,2]
[315434102,1709033442803,-500.0,0.00019452,2]
[315434103,1709033442812,-500.0,0.00019452,2]
[315434104,1709033442822,-500.0,0.00019452,2]
[315434105,1709033442831,-502.26,0.00019452,2]
[315434107,1709033442841,-851.63,0.00019452,2]
[315434108,1709033442851,-769.91,0.00019452,2]
[315434109,1709033442861,-1330.96,0.00019452,2]
[315434110,1709033442870,-500.0,0.00019452,2]
[315434111,1709033442880,-500.0,0.00019452,2]
[315434112,1709033442889,-500.0,0.00019452,2]
[315434113,1709033442898,-500.0,0.00019452,2]
[315434115,1709033442906,-500.0,0.00019452,2]
[315434117,1709033442915,-500.0,0.00019452,2]
[315434118,1709033442924,-500.0,0.00019452,2]
[315434120,1709033442933,-500.0,0.00019452,2]
[315434121,1709033442942,-500.0,0.00019452,2]
[315434122,1709033442951,-500.0,0.00019452,2]
[315434123,1709033442960,-502.13809935,0.00019452,2]
[315434124,1709033442970,-162.83762222,0.00019452,2]
[315434125,1709033442979,-500.80767734,0.00019452,2]
[315434127,1709033442988,-500.67341331,0.00019452,2]
[315434128,1709033442997,-500.0,0.00019452,2]
[315434129,1709033443010,-268.6099061,0.00019452,2]
[315434130,1709033443020,-500.0,0.00019452,2]
[315434131,1709033443030,-500.0,0.00019452,2]
[315434132,1709033443040,-500.0,0.00019452,2]
[315434133,1709033443050,-500.0,0.00019452,2]
[315434134,1709033443059,-500.0,0.00019452,2]
[315434135,1709033443069,-500.0,0.00019452,2]
[315434137,1709033443079,-500.0,0.00019452,2]
[315434139,1709033443090,-500.0,0.00019452,2]
[315434141,1709033443100,-507.34717386,0.00019452,2]
[315434143,1709033443108,-354.29,0.00019452,2]
[315434144,1709033443117,-1575.81,0.00019452,2]
[315434145,1709033443127,-395.16181797,0.00019452,2]
[315434147,1709033443136,-521.78939552,0.00019452,2]
[315434149,1709033443145,-500.0,0.00019452,2]
[315434150,1709033443154,-500.0,0.00019452,2]
[315434151,1709033443163,-500.0,0.00019452,2]
[315434152,1709033443173,-1554.85,0.00019452,2]
[315434153,1709033443182,-500.0,0.00019452,2]
[315434155,1709033443191,-500.0,0.00019452,2]
[315434156,1709033443200,-500.0,0.00019452,2]
[315434157,1709033443209,-500.0,0.00019452,2]
[315434158,1709033443218,-500.0,0.00019452,2]
[315434159,1709033443227,-376.53396052,0.00019452,2]
[315434160,1709033443236,-500.53281888,0.00019452,2]
[315434161,1709033443245,-501.19562815,0.00019452,2]
[315434162,1709033443255,-500.0,0.00019452,2]
[315434163,1709033443264,-500.0,0.00019452,2]
[315434164,1709033443273,-907.1,0.00019452,2]
[315434165,1709033443282,-712.06,0.00019452,2]
[315434166,1709033443291,-500.0,0.00019452,2]
[315434167,1709033443300,-501.62472493,0.00019452,2]
[315434169,1709033443309,-500.0,0.00019452,2]
[315434171,1709033443318,-500.0,0.00019452,2]
[315434173,1709033443327,-500.0,0.00019452,2]
[315434174,1709033443336,-500.0,0.00019452,2]
[315434175,1709033443346,-500.0,0.00019452,2]
[315434176,1709033443354,-500.0,0.00019452,2]
[315434177,1709033443363,-500.0,0.00019452,2]
[315434178,1709033443372,-501.3868524,0.00019452,2]
[315434179,1709033443382,-500.96626582,0.00019452,2]
[315434180,1709033443391,-500.0,0.00019452,2]
[315434181,1709033443400,-500.0,0.00019452,2]
[315434182,1709033443409,-2541.08,0.00019452,2]
[315434183,1709033443418,-335.919287,0.00019452,2]
[315434184,1709033443427,-500.0,0.00019452,2]
[315434185,1709033443436,-500.0,0.00019452,2]
[315434186,1709033443445,-500.0,0.00019452,2]
[315434187,1709033443454,-1145.82,0.00019452,2]
[315434188,1709033443463,-500.0,0.00019452,2]
[315434189,1709033443472,-500.0,0.00019452,2]
[315434190,1709033443481,-500.0,0.00019452,2]
[315434191,1709033443490,-500.0,0.00019452,2]
[315434192,1709033443499,-767.04,0.00019452,2]
[315434193,1709033443508,-500.0,0.00019452,2]
[315434194,1709033443517,-500.0,0.00019452,2]
[315434195,1709033443526,-500.0,0.00019452,2]
[315434196,1709033443534,-501.98121851,0.00019452,2]
[315434197,1709033443543,-1834.45,0.00019452,2]
[315434198,1709033443552,-500.0,0.00019452,2]
[315434199,1709033443561,-1907.83,0.00019452,2]
[315434200,1709033443570,-500.0,0.00019452,2]
[315434201,1709033443579,-441.60606939,0.00019452,2]
[315434202,1709033443589,-1301.18,0.00019452,2]
[315434203,1709033443598,-500.0,0.00019452,2]
[315434204,1709033443607,-500.0,0.00019452,2]
[315434205,1709033443616,-504.40324197,0.00019452,2]
[315434206,1709033443625,-500.0,0.00019452,2]
[315434207,1709033443634,-1911.4,0.00019452,2]
[315434208,1709033443643,-500.0,0.00019452,2]
[315434209,1709033443652,-500.0,0.00019452,2]
[315434210,1709033443661,-500.0,0.00019452,2]
[315434211,1709033443669,-598.39,0.00019452,2]
[315434212,1709033443678,-500.0,0.00019452,2]
[315434213,1709033443687,-500.0,0.00019452,2]
[315434214,1709033443696,-500.0,0.00019452,2]
[315434215,1709033443705,-500.0,0.00019452,2]
[315434216,1709033443714,-500.0,0.00019452,2]
[315434217,1709033443723,-374.99373444,0.00019452,2]
[315434218,1709033443731,-10079.62,0.00019452,2]
[315434219,1709033443740,-500.0,0.00019452,2]
[315434220,1709033443749,-500.0,0.00019452,2]
[315434221,1709033443758,-1988.49,0.00019452,2]
[315434222,1709033443767,-500.0,0.00019452,2]
[315434223,1709033443776,-500.0,0.00019452,2]
[315434224,1709033443784,-500.80286778,0.00019452,2]
[315434225,1709033443794,-500.0,0.00019452,2]
[315434226,1709033443802,-4134.42,0.00019452,2]
[315434227,1709033443811,-500.0,0.00019452,2]
[315434228,1709033443820,-226.05511992,0.00019452,2]
[315434229,1709033443829,-500.0,0.00019452,2]
[315434230,1709033443839,-500.0,0.00019452,2]
[315434231,1709033443848,-19597.57,0.00019452,2]
[315434232,1709033443857,-500.0,0.00019452,2]
[315434233,1709033443866,-451.77238634,0.00019452,2]
[315434234,1709033443875,-500.0,0.00019452,2]
[315434235,1709033443883,-500.0,0.00019452,2]
[315434236,1709033443892,-500.0,0.00019452,2]
[315434237,1709033443901,-500.0,0.00019452,2]
[315434238,1709033443910,-500.0,0.00019452,2]
[315434239,1709033443919,-500.0,0.00019452,2]
[315434240,1709033443928,-500.0,0.00019452,2]
[315434241,1709033443937,-500.0,0.00019452,2]
[315434242,1709033443945,-501.95643743,0.00019452,2]
[315434243,1709033443954,-500.0,0.00019452,2]
[315434244,1709033443964,-500.0,0.00019452,2]
[315434245,1709033443972,-5018.35,0.00019452,2]
[315434246,1709033443981,-500.0,0.00019452,2]
[315434247,1709033443991,-1690.48,0.00019452,2]
[315434248,1709033443999,-500.0,0.00019452,2]
[315434249,1709033444011,-500.0,0.00019452,2]
[315434250,1709033444020,-500.0,0.00019452,2]
[315434251,1709033444029,-500.0,0.00019452,2]
[315434252,1709033444038,-500.0,0.00019452,2]
[315434253,1709033444047,-500.0,0.00019452,2]
[315434254,1709033444057,-3319.47,0.00019452,2]
[315434255,1709033444065,-500.0,0.00019452,2]
[315434256,1709033444074,-501.17206482,0.00019452,2]
[315434257,1709033444084,-500.0,0.00019452,2]
[315434258,1709033444094,-614.09,0.00019452,2]
[315434259,1709033444104,-1469.61,0.00019452,2]
[315434260,1709033444113,-500.0,0.00019452,2]
[315434261,1709033444122,-1304.09,0.00019452,2]
[315434262,1709033444130,-500.0,0.00019452,2]
[315434263,1709033444140,-1460.96,0.00019452,2]
[315434264,1709033444149,-500.0,0.00019452,2]
[315434265,1709033444158,-2456.76,0.00019452,2]
[315434266,1709033444166,-524.3336593,0.00019452,2]
[315434267,1709033444175,-500.0,0.00019452,2]
[315434268,1709033444184,-2481.48,0.00019452,2]
[315434269,1709033444193,-500.0,0.00019452,2]
[315434270,1709033444202,-500.0,0.00019452,2]
[315434271,1709033444210,-6748.67,0.00019452,2]
[315434272,1709033444219,-18318.51,0.00019452,2]
[315434273,1709033444228,-3952.58,0.00019452,2]
[315434274,1709033444237,-868.04,0.00019452,2]
[315434275,1709033444246,-4670.66,0.00019452,2]
[315434276,1709033444254,-500.0,0.00019452,2]
[315434277,1709033444263,-500.0,0.00019452,2]
[315434278,1709033444272,-717.52,0.00019452,2]
[315434279,1709033444281,-500.0,0.00019452,2]
[315434280,1709033444290,-728.61,0.00019452,2]
[315434281,1709033444298,-3219.33,0.00019452,2]
[315434282,1709033444307,-500.0,0.00019452,2]
[315434283,1709033444316,-500.0,0.00019452,2]
[315434284,1709033444325,-767.21233616,0.00019603,2]
[315434285,1709033444334,-166.666666,0.00019627,2]
[315434286,1709033444344,-200.6117409,0.000197,2]
[315434287,1709033444354,-500.0,0.00019725,2]
[315434288,1709033444363,-500.0,0.00019725,2]
[315434289,1709033444372,-500.0,0.00019725,2]
[315434290,1709033444381,-500.0,0.00019725,2]
[315434291,1709033444390,-884.44,0.00019725,2]
[315434292,1709033444399,-884.44,0.00019725,2]
[315434293,1709033444408,-884.44,0.00019725,2]
[315434294,1709033444417,-500.0,0.00019726,2]
[315434295,1709033444427,-513.82,0.00019726,2]
[315434296,1709033444436,-587.09,0.00019726,2]
[315434297,1709033444445,-522.08,0.00019726,2]
[315434298,1709033444454,-500.0,0.00019726,2]
[315434299,1709033444463,-500.0,0.00019726,2]
[315434300,1709033444472,-502.26,0.00019726,2]
[315434301,1709033444481,-851.63,0.00019726,2]
[315434302,1709033444490,-769.91,0.00019726,2]
[315434303,1709033444499,-1330.96,0.00019726,2]
[315434304,1709033444508,-500.0,0.00019726,2]
[315434305,1709033444517,-500.0,0.00019726,2]
[315434306,1709033444526,-500.0,0.00019726,2]
[315434307,1709033444535,-500.0,0.00019726,2]
[315434308,1709033444544,-500.0,0.00019726,2]
[315434309,1709033444553,-500.0,0.00019726,2]
[315434310,1709033444562,-500.0,0.00019726,2]
[315434311,1709033444659,-500.0,0.00019726,2]
[315434312,1709033444669,-500.0,0.00019726,2]
[315434313,1709033444678,-500.0,0.00019726,2]
[315434314,1709033444687,-500.0,0.00019726,2]
[315434315,1709033444695,-213.90015666,0.00019726,2]
[315434316,1709033444704,-500.0,0.00019726,2]
[315434317,1709033444713,-500.0,0.00019726,2]
[315434318,1709033444722,-500.0,0.00019726,2]
[315434319,1709033444730,-1575.81,0.00019726,2]
[315434320,1709033444739,-500.0,0.00019726,2]
[315434321,1709033444748,-500.0,0.00019726,2]
[315434322,1709033444757,-500.0,0.00019726,2]
[315434323,1709033444766,-1554.85,0.00019726,2]
[315434324,1709033444775,-500.0,0.00019726,2]
[315434325,1709033444784,-500.0,0.00019726,2]
[315434326,1709033444793,-500.0,0.00019726,2]
[315434327,1709033444802,-500.0,0.00019726,2]
[315434328,1709033444811,-500.0,0.00019726,2]
[315434329,1709033444820,-500.0,0.00019726,2]
[315434330,1709033444829,-315.7665185,0.00019726,2]
[315434331,1709033444838,-907.1,0.00019726,2]
[315434332,1709033444849,-712.06,0.00019726,2]
[315434333,1709033444858,-500.0,0.00019726,2]
[315434334,1709033444868,-500.0,0.00019726,2]
[315434335,1709033444877,-500.0,0.00019726,2]
[315434336,1709033444886,-500.0,0.00019726,2]
[315434337,1709033444895,-500.0,0.00019726,2]
[315434338,1709033444904,-500.0,0.00019726,2]
[315434339,1709033444913,-500.0,0.00019726,2]
[315434340,1709033444922,-526.19440207,0.00019726,2]
[315434341,1709033444931,-500.0,0.00019726,2]
[315434342,1709033444940,-2541.08,0.00019726,2]
[315434343,1709033444949,-306.64800142,0.00019726,2]
[315434344,1709033444958,-500.0,0.00019726,2]
[315434345,1709033444967,-502.67690277,0.00019726,2]
[315434346,1709033444976,-1145.82,0.00019726,2]
[315434347,1709033444986,-500.0,0.00019726,2]
[315434348,1709033444995,-332.96266371,0.00019726,2]
[315434349,1709033445007,-500.0,0.00019726,2]
[315434350,1709033445015,-767.04,0.00019726,2]
[315434351,1709033445024,-500.0,0.00019726,2]
[315434352,1709033445034,-500.0,0.00019726,2]
[315434353,1709033445043,-502.85792086,0.00019726,2]
[315434354,1709033445051,-1834.45,0.00019726,2]
[315434355,1709033445060,-500.0,0.00019726,2]
[315434356,1709033445072,-1907.83,0.00019726,2]
[315434357,1709033445081,-500.0,0.00019726,2]